bitfinex/quotes_SOLUSD_20250817
["timestamp","ask_amount","ask_price","bid_price","bid_amount"]
[1755422904794,3.86697541,193.06,193.05,4.04341653]
[1755422904959,7.34821657,193.06,193.05,4.04341653]
[1755422905286,3.86697541,193.06,193.05,4.04341653]
[1755422905492,7.34821657,193.06,193.05,0.66]
[1755422905691,3.86697541,193.06,193.05,4.04341653]
[1755422905983,7.34821657,193.06,193.05,4.04341653]
[1755422906185,3.86697541,193.06,193.05,4.04341653]
[1755422906383,7.34821657,193.06,193.05,9.22342171]
[1755422906568,3.86697541,193.06,193.05,9.22342171]
[1755422906768,7.34821657,193.06,193.05,9.22342171]
[1755422906968,3.86697541,193.06,193.05,9.22342171]
[1755422907168,3.48324557,193.06,193.05,9.22342171]
[1755422907400,7.35314595,193.07,193.05,9.22342171]
[1755422907571,0.06,193.08,193.03,5.18054188]
[1755422907572,7.35314595,193.06,193.03,5.18054188]
[1755422907771,3.48324557,193.07,193.03,5.18054188]
[1755422908088,7.35364498,193.06,193.04,0.66]
[1755422908292,3.48324557,193.07,193.04,0.66]
[1755422908482,7.35434425,193.06,193.04,0.66]
[1755422908664,3.48324557,193.07,193.05,3.38341653]
[1755422908864,3.5436881,193.08,193.06,30.04341653]
[1755422909185,3.54427413,193.08,193.07,3.38341653]
[1755422909489,7.414984,193.08,193.07,4.04341653]
[1755422909871,7.414984,193.08,193.05,0.66]
[1755422910077,7.35556969,193.07,193.06,3.38341653]
[1755422910597,7.35556969,193.07,193.06,4.04341653]
[1755422911262,7.35706825,193.07,193.06,4.04341653]
[1755422911460,0.06,193.08,193.05,26.0]
[1755422911664,0.06,193.08,193.01,5.1810787]
[1755422911665,8.01826942,193.07,193.01,5.1810787]
[1755422911899,3.44341653,193.08,193.0,9.22466015]
[1755422911900,11.40168595,193.06,193.0,9.22466015]
[1755422912065,8.01826942,193.05,193.0,35.22466015]
[1755422912387,7.35826942,193.04,193.0,9.22466015]
[1755422912573,7.35826942,193.03,193.01,29.38341653]
[1755422912756,0.66,193.04,193.01,29.38341653]
[1755422912961,7.36192506,193.03,193.01,29.38341653]
[1755422913269,7.36192506,193.02,193.01,30.04341653]
[1755422915167,7.36192506,193.02,193.01,35.22449523]
[1755422916263,7.36173401,193.02,193.01,35.22449523]
[1755422916786,3.48724771,193.06,193.01,35.22449523]
[1755422917097,7.361529,193.05,193.02,0.66]
[1755422917417,7.361529,193.04,193.03,0.66]
[1755422917986,7.361529,193.04,193.03,4.04341653]
[1755422919185,7.361529,193.04,193.03,9.22395841]
[1755422922184,7.36130855,193.04,193.03,9.22395841]
[1755422925099,3.87406084,193.04,193.03,9.22395841]
[1755422925473,0.06,193.08,193.05,26.0]
[1755422925674,0.06,193.08,193.07,3.38341653]
[1755422925978,0.06,193.08,193.07,6.76683306]
[1755422926312,0.06,193.08,193.07,4.06341653]
[1755422927169,0.06,193.08,193.07,9.24288511]
[1755422927397,0.06,193.08,193.07,5.85946858]
[1755422927581,0.06,193.08,193.07,9.24288511]
[1755422929796,0.06,193.08,193.07,8.56288511]
[1755422930003,0.06,193.08,193.07,9.24288511]
[1755422932498,0.06,193.08,193.07,5.85946858]
[1755422932798,0.06,193.08,193.07,3.38341653]
[1755422934223,0.75,193.08,193.07,26.0]
[1755422934520,0.75,193.08,193.07,3.38341653]
[1755422935514,0.75,193.08,193.05,5.17987486]
[1755422935717,0.06,193.08,193.05,3.38341653]
[1755422936020,0.69,193.07,193.06,3.38341653]
[1755422936192,0.75,193.08,193.06,3.38341653]
[1755422936386,3.48289645,193.07,193.06,3.38341653]
[1755422937312,7.35273754,193.07,193.06,3.38341653]
[1755422937704,7.35273754,193.07,193.04,31.18023588]
[1755422937905,3.48289645,193.07,193.06,3.38341653]
[1755422938111,7.3532677,193.07,193.05,3.38341653]
[1755422938297,0.75,193.08,193.05,3.38341653]
[1755422938498,8.0459628,193.07,193.05,3.38341653]
[1755422938819,8.04622706,193.06,193.03,26.0]
[1755422939114,8.04644859,193.05,193.01,3.38341653]
[1755422939421,0.69,193.05,193.01,8.5644426]
[1755422939605,0.69,193.05,193.01,9.2444426]
[1755422939923,8.62274251,193.08,193.02,3.38341653]
[1755422940096,8.04762125,193.07,193.02,3.38341653]
[1755422940287,7.35762125,193.06,193.02,3.38341653]
[1755422940491,7.35762125,193.05,193.02,4.06341653]
[1755422940717,0.69,193.07,193.03,3.38341653]
[1755422940920,7.3578361,193.06,193.03,3.38341653]
[1755422941099,7.3578361,193.05,193.03,3.38341653]
[1755422941289,0.69,193.06,193.03,3.38341653]
[1755422941492,7.35780986,193.05,193.03,3.38341653]
[1755422941689,7.35780986,193.04,193.03,3.38341653]
[1755422941922,11.09122639,193.04,192.99,3.38341653]
[1755422942110,7.70780986,193.03,192.97,0.68]
[1755422942293,7.35780986,193.02,192.99,3.38341653]
[1755422942493,3.48527435,193.01,192.99,3.38341653]
[1755422942710,0.35,193.03,193.0,3.38341653]
[1755422942711,3.48527435,193.02,193.0,3.38341653]
[1755422942912,7.35793044,193.01,192.98,31.18185729]
[1755422943114,3.48527435,193.02,193.0,3.38341653]
[1755422943316,7.70733133,193.01,192.98,29.38341654]
[1755422943622,0.35,193.01,192.98,29.38341654]
[1755422943803,7.70753284,193.0,192.98,1e-08]
[1755422944011,7.35753284,192.99,192.98,1e-08]
[1755422944207,7.70753284,192.99,192.98,1e-08]
[1755422944542,4.22225849,192.99,192.98,1e-08]
[1755422944822,0.35,192.99,192.98,1e-08]
[1755422944997,7.70753284,192.99,192.98,1e-08]
[1755422945200,4.22225849,192.99,192.98,1e-08]
[1755422945402,0.35,192.99,192.98,1e-08]
[1755422945602,7.70753284,192.99,192.98,1e-08]
[1755422945802,4.22225849,192.99,192.98,1e-08]
[1755422945997,3.87225849,192.99,192.98,1e-08]
[1755422946211,3.48527435,193.0,192.98,1e-08]
[1755422946417,3.83527435,193.0,192.98,1e-08]
[1755422946602,0.35,193.0,192.98,1e-08]
[1755422947110,7.70426947,193.0,192.98,1e-08]
[1755422947302,0.35,193.0,192.98,1e-08]
[1755422947702,7.7032892,193.0,192.98,1e-08]
[1755422947920,0.35,193.0,192.98,1e-08]
[1755422948331,4.21801485,193.0,192.98,3.38341654]
[1755422948534,3.48527435,193.01,192.98,3.38341654]
[1755422948835,3.86711638,193.0,192.98,3.38341654]
[1755422949131,4.17527435,193.01,192.98,3.38341654]
[1755422949333,3.86655345,193.0,192.98,3.38341654]
[1755422949515,4.17527435,193.01,192.98,3.38341654]
[1755422949717,3.86629849,193.0,192.98,3.38341654]
[1755422949942,4.17527435,193.01,192.98,3.38341654]
[1755422950118,3.86629765,193.0,192.98,3.38341654]
[1755422950436,4.17527435,193.01,192.98,3.38341654]
[1755422950617,3.86554689,193.0,192.98,1e-08]
[1755422950817,4.17527435,193.01,192.98,3.38341654]
[1755422951027,3.86554605,193.0,192.98,3.38341654]
[1755422951230,4.17527435,193.01,192.98,1e-08]
[1755422951404,0.69,193.01,192.98,3.38341654]
[1755422951827,4.55485696,193.01,192.98,3.38341654]
[1755422954138,4.55485696,193.01,192.98,1e-08]
[1755422954337,4.55485696,193.01,192.98,3.38341654]
[1755422955914,4.54485696,193.01,192.98,3.38341654]
[1755422956939,4.54485696,193.01,192.98,1e-08]
[1755422957238,4.54485696,193.01,192.98,3.38341654]
[1755422957738,4.54485696,193.01,192.98,1e-08]
[1755422957913,4.54485696,193.01,192.98,3.38341654]
[1755422959830,3.86485696,193.01,192.98,1e-08]
[1755422960035,3.86485696,193.01,192.98,4.10341654]
[1755422960843,4.16527435,193.02,192.98,4.10341654]
[1755422961025,3.86127929,193.01,192.98,4.10341654]
[1755422961224,3.86127929,193.01,192.98,1e-08]
[1755422961225,0.68,193.0,192.98,1e-08]
[1755422962438,3.86094446,193.01,192.98,1e-08]
[1755422962817,4.54094446,193.01,192.98,1e-08]
[1755422963015,4.54094446,193.01,192.98,3.38341654]
[1755422966130,4.54094446,193.01,192.98,4.10341654]
[1755422966324,3.48527435,193.02,192.98,4.10341654]
[1755422966529,4.16527435,193.02,192.98,4.10341654]
[1755422967245,4.16527435,193.02,192.98,0.72000001]
[1755422967549,4.16527435,193.02,192.98,4.10341654]
[1755422968633,4.16527435,193.02,192.99,3.38341653]
[1755422968831,4.16527435,193.02,192.98,4.10341654]
[1755422969033,3.48527435,193.02,192.98,0.72000001]
[1755422969228,0.68,193.01,192.98,0.72000001]
[1755422969847,0.68,193.01,192.98,1e-08]
[1755422970743,0.68,193.0,192.98,1e-08]
[1755422971142,0.68,193.01,192.98,1e-08]
[1755422971346,4.54017802,193.01,192.98,1e-08]
[1755422975332,8.02545237,193.01,192.98,1e-08]
[1755422975652,3.86017802,193.0,192.98,1e-08]
[1755422976749,8.02545237,193.0,192.98,1e-08]
[1755422976955,48.2888689,192.99,192.98,1e-08]
[1755422977923,53.47048452,192.99,192.98,1e-08]
[1755422978638,68.57670009,192.99,192.98,1e-08]
[1755422979326,72.93889585,192.99,192.98,1e-08]
[1755422979955,72.93978278,192.99,192.98,1e-08]
[1755422982459,72.94314156,192.99,192.98,1e-08]
[1755422982859,72.92314156,192.99,192.98,1e-08]
[1755422984460,68.5715901,192.99,192.98,1e-08]
[1755422985041,15.10621557,192.98,192.96,0.03]
[1755422985255,44.22034238,192.97,192.96,0.03]
[1755422986446,44.88034238,192.97,192.96,0.03]
[1755422986840,50.06249504,192.97,192.96,0.03]
[1755422987453,49.40249504,192.97,192.96,0.03]
[1755422988445,49.40553187,192.97,192.96,0.03]
[1755422988970,57.81079728,192.97,192.96,0.03]
[1755422989140,205.1938485,192.97,192.96,0.03]
[1755422989469,149.80621557,192.96,192.95,0.03]
[1755422989666,159.76766431,192.96,192.95,0.03]
[1755422989969,168.94377075,192.96,192.95,0.03]
[1755422990261,160.55258042,192.96,192.95,0.03]
[1755422990450,198.07258042,192.96,192.95,0.03]
[1755422990652,194.68916389,192.96,192.95,0.03]
[1755422990842,203.25500164,192.96,192.95,0.03]
[1755422991041,199.87158511,192.96,192.95,0.03]
[1755422991248,203.25500164,192.96,192.95,0.03]
[1755422991866,199.87158511,192.96,192.95,0.03]
[1755422992072,203.25500164,192.96,192.95,0.03]
[1755422992844,202.59500164,192.96,192.95,0.03]
[1755422993646,203.25500164,192.96,192.95,0.03]
[1755422994265,207.61032467,192.96,192.95,0.03]
[1755422994856,206.95032467,192.96,192.95,0.03]
[1755422995263,202.59500164,192.96,192.95,0.03]
[1755422995462,206.95032467,192.96,192.95,0.03]
[1755422996157,207.61032467,192.96,192.95,0.03]
[1755422996469,206.95032467,192.96,192.95,0.03]
[1755422996942,207.33032467,192.96,192.95,0.03]
[1755422997666,207.3221402,192.96,192.95,0.03]
[1755422998367,206.9421402,192.96,192.95,0.03]
[1755422999158,209.0195762,192.96,192.95,0.03]
[1755422999668,74.3195762,192.96,192.95,0.03]
[1755422999859,69.96425317,192.96,192.95,0.03]
[1755423000378,67.88681717,192.96,192.95,0.03]
[1755423000585,72.2421402,192.96,192.95,0.03]
[1755423000749,44.19476385,192.96,192.95,0.74]
[1755423001581,49.37718507,192.96,192.95,0.74]
[1755423001881,52.7606016,192.96,192.95,0.03]
[1755423002260,68.52681717,192.96,192.95,0.03]
[1755423002460,72.8821402,192.96,192.95,0.03]
[1755423002846,69.0126507,192.96,192.95,0.03]
[1755423003072,72.22125974,192.96,192.95,0.03]
[1755423003274,53.73162764,192.96,192.95,0.74]
[1755423003685,49.37630461,192.96,192.95,0.74]
[1755423003873,49.37630461,192.96,192.95,0.03]
[1755423004172,52.75972114,192.96,192.95,0.03]
[1755423004564,15.91972114,192.96,192.95,0.03]
[1755423004881,52.75972114,192.96,192.95,0.03]
[1755423005684,48.8911121,192.96,192.95,0.03]
[1755423005985,57.1151266,192.96,192.95,0.03]
[1755423006280,72.22134217,192.96,192.95,0.74]
[1755423007190,72.22134217,192.96,192.95,0.03]
[1755423007191,68.52601914,192.96,192.95,0.03]
[1755423007386,15.10621557,192.95,192.94,0.03]
[1755423007550,30.19678005,192.95,192.94,0.03]
[1755423008586,41.10621557,192.94,192.93,0.03]
[1755423008758,41.10621557,192.94,192.82,2.787652]
[1755423008759,51.09819571,192.92,192.82,2.787652]
[1755423008957,3.38341653,192.83,192.82,2.787652]
[1755423009177,45.40933158,192.83,192.82,0.71]
[1755423009364,52.7632974,192.83,192.82,0.71]
[1755423010058,36.84,192.83,192.82,0.71]
[1755423010566,36.84,192.83,192.82,4.09341653]
[1755423010998,22.31949446,192.91,192.83,26.0]
[1755423011154,12.52865312,192.9,192.87,3.38341653]
[1755423011357,12.52865312,192.9,192.88,0.71]
[1755423011358,40.70535655,192.89,192.88,0.71]
[1755423011598,44.18457892,192.89,192.86,3.38341653]
[1755423011797,36.84,192.89,192.86,3.38341653]
[1755423012291,36.84,192.89,192.87,0.71]
[1755423012588,36.84,192.89,192.88,0.71]
[1755423012889,44.18457693,192.89,192.88,0.71]
[1755423014677,40.31911512,192.89,192.88,0.71]
[1755423014879,44.18522736,192.89,192.88,0.71]
[1755423015860,44.18522736,192.89,192.83,41.611583]
[1755423016062,7.34651108,192.88,192.86,0.67]
[1755423016359,7.34651108,192.88,192.85,3.38341653]
[1755423016360,40.70666048,192.87,192.85,3.38341653]
[1755423016692,36.84,192.87,192.86,3.38341653]
[1755423016894,36.84,192.87,192.86,4.05341653]
[1755423017785,36.84,192.88,192.86,4.05341653]
[1755423017967,36.84,192.88,192.87,3.38341653]
[1755423018162,44.188229,192.88,192.87,4.05341653]
[1755423018376,7.348229,192.88,192.87,4.05341653]
[1755423019294,7.348229,192.88,192.87,0.67]
[1755423019661,15.91621624,192.88,192.85,0.03]
[1755423019861,8.56852489,192.86,192.85,0.03]
[1755423020089,12.53333736,192.86,192.85,0.03]
[1755423021368,7.348229,192.86,192.85,4.08341653]
[1755423021584,40.68771644,192.86,192.85,4.08341653]
[1755423021897,44.168229,192.86,192.85,4.08341653]
[1755423022568,7.348229,192.86,192.85,4.08341653]
[1755423023391,7.348229,192.86,192.85,0.7]
[1755423023896,7.35080738,192.86,192.85,0.7]
[1755423024267,7.35080744,192.86,192.85,0.7]
[1755423024469,12.5359158,192.86,192.85,0.03]
[1755423025096,7.35080744,192.86,192.85,0.03]
[1755423025597,12.5359158,192.86,192.85,0.03]
[1755423025773,12.53873421,192.86,192.85,0.03]
[1755423027397,7.35362585,192.86,192.85,0.7]
[1755423028298,7.35362585,192.86,192.85,4.08341653]
[1755423030397,7.35504892,192.86,192.85,4.08341653]
[1755423030771,7.35504892,192.86,192.85,0.7]
[1755423032795,7.35504892,192.86,192.85,4.08341653]
[1755423033002,3.87325024,192.86,192.85,4.08341653]
[1755423033312,7.35656372,192.86,192.85,4.08341653]
[1755423033509,3.87400451,192.86,192.85,4.08341653]
[1755423035288,7.36025769,192.86,192.85,4.08341653]
[1755423036577,3.87400451,192.86,192.85,4.08341653]
[1755423036778,0.06,192.91,192.88,26.0]
[1755423036988,0.06,192.91,192.9,3.38341653]
[1755423037198,0.06,192.91,192.9,29.38341653]
[1755423037502,0.06,192.91,192.9,30.05341653]
[1755423037892,0.06,192.91,192.9,26.67]
[1755423038083,0.06,192.91,192.9,30.05341653]
[1755423038274,0.06,192.91,192.9,35.2374497]
[1755423040995,0.06,192.91,192.9,30.05341653]
[1755423042602,0.06,192.91,192.9,26.67]
[1755423042794,0.06,192.91,192.9,30.05341653]
[1755423044416,0.06,192.91,192.9,4.05341653]
[1755423045690,0.06,192.91,192.9,0.67]
[1755423045888,0.06,192.91,192.9,4.05341653]
[1755423046594,0.06,192.91,192.9,7.53740653]
[1755423047000,0.06,192.91,192.9,4.15399]
[1755423047315,0.06,192.91,192.9,7.53740653]
[1755423049422,0.06,192.91,192.9,6.86740653]
[1755423049646,0.06,192.91,192.85,0.7]
[1755423049647,0.77,192.91,192.85,0.7]
[1755423049804,3.38341653,192.89,192.85,0.03]
[1755423050001,3.4839908,192.88,192.85,26.03]
[1755423050199,0.71,192.87,192.85,0.03]
[1755423050412,36.78,192.86,192.85,0.03]
[1755423050719,40.9739908,192.86,192.85,0.03]
[1755423051618,40.2639908,192.86,192.85,0.03]
[1755423051989,40.9739908,192.86,192.85,0.03]
[1755423052193,46.15909916,192.86,192.85,0.03]
[1755423052814,40.9739908,192.86,192.85,0.03]
[1755423053223,40.2639908,192.86,192.85,0.03]
[1755423054407,44.1356896,192.86,192.85,0.03]
[1755423055934,44.8456896,192.86,192.85,0.03]
[1755423056229,44.1356896,192.86,192.85,0.03]
[1755423057501,49.32079796,192.86,192.85,0.03]
[1755423057703,50.03079796,192.86,192.85,0.03]
[1755423059230,44.8456896,192.86,192.85,0.03]
[1755423060310,50.03065273,192.86,192.85,0.03]
[1755423060932,50.03041307,192.86,192.85,0.03]
[1755423062507,44.84530471,192.86,192.85,0.03]
[1755423062815,50.03041307,192.86,192.85,0.03]
[1755423063125,53.4138296,192.86,192.85,0.03]
[1755423063329,50.03041307,192.86,192.85,0.03]
[1755423063726,53.4138296,192.86,192.85,0.03]
[1755423065342,44.13530471,192.86,192.85,0.03]
[1755423066832,68.52004517,192.86,192.85,0.03]
[1755423067233,15.10621557,192.85,192.83,0.03]
[1755423067440,3.38341653,192.82,192.81,0.03]
[1755423067614,47.51872124,192.82,192.81,0.03]
[1755423067817,48.22872124,192.82,192.81,0.03]
[1755423068425,3.4839908,192.82,192.81,0.03]
[1755423068634,3.4839908,192.82,192.81,0.7]
[1755423068635,36.78,192.82,192.81,0.7]
[1755423068829,40.2639908,192.82,192.81,0.7]
[1755423069341,36.78,192.82,192.81,0.7]
[1755423069644,36.78,192.82,192.81,4.08341653]
[1755423069940,36.78,192.83,192.81,9.26986951]
[1755423070142,36.78,192.83,192.82,4.05341653]
[1755423070515,15.10621557,192.88,192.82,4.05341653]
[1755423070711,15.10621557,192.88,192.81,5.21645298]
[1755423070712,44.12759793,192.87,192.83,3.38341653]
[1755423070907,7.34759793,192.86,192.83,0.67]
[1755423071109,40.64748573,192.85,192.83,0.67]
[1755423071320,36.78,192.85,192.83,0.67]
[1755423071937,36.78,192.85,192.82,3.38341653]
[1755423072243,36.78,192.85,192.82,4.05341653]
[1755423073341,36.78,192.85,192.84,3.38341653]
[1755423073543,40.25978011,192.85,192.84,4.05341653]
[1755423074062,3.47978011,192.85,192.84,30.05341653]
[1755423074219,0.77,192.91,192.84,30.05341653]
[1755423074220,3.47901516,192.89,192.85,26.0]
[1755423074553,36.78,192.89,192.88,3.38341653]
[1755423074845,36.78,192.89,192.88,4.05341653]
[1755423075532,36.78,192.89,192.88,9.23798724]
[1755423075737,0.06,192.91,192.88,9.23798724]
[1755423075909,0.06,192.91,192.9,29.38341653]
[1755423076332,0.06,192.91,192.9,30.05341653]
[1755423076821,0.06,192.91,192.9,9.2374497]
[1755423080147,0.06,192.91,192.9,35.2374497]
[1755423080845,0.06,192.91,192.9,30.05341653]
[1755423081032,0.06,192.91,192.9,26.0]
[1755423082941,0.06,192.91,192.9,29.38341653]
[1755423083346,0.06,192.91,192.89,0.67]
[1755423083552,0.06,192.91,192.9,0.67]
[1755423083742,0.06,192.91,192.9,4.05341653]
[1755423084742,0.06,192.91,192.9,9.2374497]
[1755423084945,0.06,192.91,192.9,5.85403317]
[1755423085251,0.06,192.91,192.9,0.67]
[1755423085456,0.06,192.91,192.9,4.05341653]
[1755423085740,0.06,192.91,192.9,0.67]
[1755423085923,0.06,192.91,192.9,3.38341653]
[1755423086327,0.06,192.91,192.9,8.5674497]
[1755423086639,0.06,192.91,192.9,9.2374497]
[1755423088643,0.06,192.93,192.92,29.38341653]
[1755423088956,0.06,192.93,192.92,29.9017661]
[1755423089359,0.06,192.93,192.92,30.5717661]
[1755423089857,0.06,192.93,192.92,35.75526184]
[1755423091446,0.06,192.93,192.92,37.83151184]
[1755423091828,0.06,192.93,192.92,35.75526184]
[1755423093840,1e-08,192.93,192.92,47.47806088]
[1755423094040,1e-08,192.93,192.92,50.86147741]
[1755423096865,1e-08,192.93,192.92,87.60147741]
[1755423098353,1e-08,192.93,192.92,71.82526184]
[1755423098563,1e-08,192.93,192.92,71.30691227]
[1755423099072,1e-08,192.93,192.92,71.97691227]
[1755423101365,1e-08,192.93,192.92,68.59349574]
[1755423101566,1e-08,192.93,192.92,71.97691227]
[1755423102052,1e-08,192.93,192.92,72.49526184]
[1755423102576,1e-08,192.93,192.92,71.82526184]
[1755423102778,1e-08,192.93,192.92,34.56691227]
[1755423103463,1e-08,192.93,192.92,35.75526184]
[1755423103666,1e-08,192.93,192.92,50.86147741]
[1755423104652,0.06,192.96,192.95,26.0]
[1755423104883,0.06,192.96,192.95,66.64168551]
[1755423105063,0.06,192.96,192.95,67.31168551]
[1755423106468,0.06,192.96,192.95,67.92268981]
[1755423106672,0.06,192.96,192.95,71.30610634]
[1755423106855,0.06,192.96,192.95,34.56610634]
[1755423108577,0.73,192.96,192.95,34.56610634]
[1755423109078,0.06,192.96,192.95,34.56610634]
[1755423110173,0.06,192.96,192.95,3.38341653]
[1755423110480,0.73,192.96,192.95,34.56610634]
[1755423112173,0.06,192.96,192.95,34.56610634]
[1755423113177,0.06,192.96,192.95,31.18268981]
[1755423113376,0.06,192.96,192.95,34.56610634]
[1755423113958,0.06,192.96,192.95,31.18268981]
[1755423114165,0.06,192.96,192.95,34.56610634]
[1755423117233,0.73,192.96,192.95,26.0]
[1755423117366,4.1953714,192.96,192.95,26.0]
[1755423118269,3.5253714,192.96,192.95,26.0]
[1755423118480,7.39738119,192.96,192.95,30.08341653]
[1755423118869,7.39738119,192.96,192.95,29.41341653]
[1755423119079,7.39738119,192.96,192.95,31.21268981]
[1755423119288,3.5253714,192.96,192.95,34.59610634]
[1755423119476,7.39860541,192.96,192.95,31.21268981]
[1755423119867,7.39860541,192.96,192.95,34.59610634]
[1755423120094,7.39875579,192.96,192.95,34.59610634]
[1755423120289,7.39875579,192.96,192.95,3.41341653]
[1755423121191,7.39875579,192.96,192.95,0.03]
[1755423121499,11.45217232,192.96,192.95,0.03]
[1755423121826,20.98824125,192.96,192.95,0.03]
[1755423122315,17.60739133,192.96,192.95,0.03]
[1755423122504,32.7136069,192.96,192.95,0.03]
[1755423122714,37.54960203,192.96,192.91,0.03]
[1755423123018,3.38341653,192.92,192.91,0.03]
[1755423123192,64.35164112,192.92,192.91,0.03]
[1755423123517,68.40423729,192.92,192.91,0.03]
[1755423124815,65.02082076,192.92,192.91,0.03]
[1755423124993,68.40423729,192.92,192.91,0.03]
[1755423125826,65.02082076,192.92,192.91,0.03]
[1755423126027,68.40423729,192.92,192.91,0.03]
[1755423129600,7.34110945,192.92,192.91,0.03]
[1755423129801,40.2053714,192.93,192.91,0.7]
[1755423130013,36.74,192.93,192.91,5.88376325]
[1755423130221,36.74,192.93,192.91,9.26717978]
[1755423130417,36.74,192.93,192.91,0.7]
[1755423130696,36.74,192.93,192.91,4.08341653]
[1755423131727,36.74,192.93,192.91,0.03]
[1755423132246,37.41,192.93,192.91,0.03]
[1755423132409,3.48299126,192.92,192.91,0.03]
[1755423133211,3.48299126,192.92,192.91,30.08341653]
[1755423133803,3.48299126,192.92,192.91,26.7]
[1755423134003,3.48299126,192.92,192.91,30.08341653]
[1755423135229,3.48299126,192.92,192.91,26.7]
[1755423135428,3.48299126,192.92,192.91,30.08341653]
[1755423136126,3.48299126,192.92,192.91,26.7]
[1755423140131,36.74,192.93,192.91,26.7]
[1755423142519,40.80341653,192.93,192.91,26.03]
[1755423142723,7.3521186,192.92,192.91,26.03]
[1755423142918,3.48240879,192.92,192.91,26.03]
[1755423144128,7.54582532,192.92,192.91,0.03]
[1755423144440,11.41582947,192.92,192.91,0.03]
[1755423144640,16.59932521,192.92,192.91,0.03]
[1755423144861,31.70554078,192.92,192.91,0.03]
[1755423146144,28.32212425,192.92,192.91,0.03]
[1755423146336,31.70554078,192.92,192.91,0.03]
[1755423146930,28.32212425,192.92,192.91,0.03]
[1755423147141,31.70554078,192.92,192.91,0.03]
[1755423147316,11.41582947,192.92,192.91,0.03]
[1755423147519,10.73582947,192.92,192.91,0.03]
[1755423147840,11.41582947,192.92,192.91,0.03]
[1755423148039,8.03241294,192.92,192.91,0.03]
[1755423148239,11.41582947,192.92,192.91,0.03]
[1755423148930,10.73582947,192.92,192.91,0.03]
[1755423149445,7.54582532,192.92,192.91,0.03]
[1755423149641,11.41563687,192.92,192.91,0.03]
[1755423150029,31.70534818,192.92,192.91,0.03]
[1755423150944,25.84185244,192.92,192.91,0.03]
[1755423151130,31.02534818,192.92,192.91,0.03]
[1755423151331,31.70534818,192.92,192.91,0.03]
[1755423151935,22.45843591,192.92,192.91,0.03]
[1755423152254,44.09222034,192.92,192.91,0.03]
[1755423153732,47.47563687,192.92,192.91,0.03]
[1755423154766,53.33913261,192.92,192.91,0.03]
[1755423155421,49.46932106,192.92,192.91,0.03]
[1755423155624,53.34281319,192.92,192.91,0.03]
[1755423156043,49.95939666,192.92,192.91,0.03]
[1755423156234,53.34281319,192.92,192.91,0.03]
[1755423156950,68.44902876,192.92,192.91,0.03]
[1755423158555,53.34429037,192.92,192.91,0.03]
[1755423160061,94.45050594,192.92,192.89,0.03]
[1755423160281,3.38341653,192.9,192.89,0.03]
[1755423160479,70.33148305,192.9,192.89,1e-08]
[1755423160764,71.01148305,192.9,192.89,1e-08]
[1755423161343,76.19551622,192.9,192.89,1e-08]
[1755423161536,74.258307,192.9,192.89,1e-08]
[1755423161754,76.19631031,192.9,192.89,1e-08]
[1755423164454,75.51631031,192.9,192.89,1e-08]
[1755423164664,76.19631031,192.9,192.89,1e-08]
[1755423165040,70.390084,192.9,192.89,1e-08]
[1755423165249,76.19631031,192.9,192.89,1e-08]
[1755423165449,70.390084,192.9,192.89,1e-08]
[1755423166742,76.19631031,192.9,192.89,1e-08]
[1755423167165,70.390084,192.9,192.89,1e-08]
[1755423167665,70.38735031,192.9,192.89,1e-08]
[1755423167869,61.0859639,192.9,192.89,1e-08]
[1755423168258,61.08846191,192.9,192.89,1e-08]
[1755423169168,60.40846191,192.9,192.89,1e-08]
[1755423169673,57.02504538,192.9,192.89,1e-08]
[1755423169858,60.40846191,192.9,192.89,1e-08]
[1755423170247,26.0,192.88,192.87,0.03]
[1755423170477,209.14996903,192.88,192.87,0.72]
[1755423171083,217.71795627,192.88,192.87,0.72]
[1755423171248,217.71795627,192.88,192.87,0.03]